fUSD/lending_fUSD_20260226
["ID","MTS","AMOUNT","RATE_DAILY","PERIOD"]
[406721915,1772119858340,-339.21457322,0.00017997,2]
[406721916,1772119858349,-156.66979557,0.00017997,2]
[406721917,1772119858359,-150.0,0.00017997,2]
[406721918,1772119858371,-150.0,0.00017997,2]
[406721919,1772119858381,-150.0,0.00017997,2]
[406721920,1772119858390,-150.0,0.00017997,2]
[406721921,1772119858399,-187.29970089,0.00017997,2]
[406721922,1772119858408,-339.21457322,0.00017997,2]
[406721923,1772119858418,-156.66979557,0.00017997,2]
[406721924,1772119858427,-500.0,0.00017997,2]
[406721925,1772119858437,-585.34193538,0.00017997,2]
[406721926,1772119858446,-151.0,0.00017997,2]
[406721927,1772119858457,-150.0,0.00017997,2]
[406721928,1772119858466,-150.0,0.00017997,2]
[406721929,1772119858475,-150.0,0.00017997,2]
[406721930,1772119858485,-150.0,0.00017997,2]
[406721931,1772119858496,-187.29970089,0.00017997,2]
[406721932,1772119858505,-339.21457322,0.00017997,2]
[406721933,1772119858519,-156.66979557,0.00017997,2]
[406721934,1772119858530,-150.0,0.00017997,2]
[406721935,1772119858541,-150.0,0.00017997,2]
[406721936,1772119858551,-150.0,0.00017997,2]
[406721937,1772119858562,-187.29970089,0.00017998,2]
[406721938,1772119858571,-339.21457322,0.00017998,2]
[406721939,1772119858582,-156.66979557,0.00017998,2]
[406721940,1772119858592,-150.0,0.00017998,2]
[406721941,1772119858601,-150.0,0.00017998,2]
[406721942,1772119858611,-150.0,0.00017998,2]
[406721943,1772119858621,-150.0,0.00017998,2]
[406721944,1772119858631,-150.0,0.00017998,2]
[406721945,1772119858641,-150.0,0.00017998,2]
[406721946,1772119858650,-187.29970089,0.00017998,2]
[406721947,1772119858754,-339.21457322,0.00017998,2]
[406721948,1772119858764,-156.66979557,0.00017998,2]
[406721949,1772119858775,-150.0,0.00017998,2]
[406721950,1772119858785,-150.0,0.00017998,2]
[406721951,1772119858795,-150.0,0.00017998,2]
[406721952,1772119858805,-5517.8620693,0.00017998,2]
[406721953,1772119858815,-612912.4885331,0.00017998,2]
[406721954,1772119858824,-15840.8831904,0.00017998,2]
[406721955,1772119858833,-749826.76595271,0.00017998,2]
[406721956,1772119858843,-256335.76156496,0.00017998,2]
[406721957,1772119858852,-187.29970089,0.00017998,2]
[406721958,1772119858861,-339.21457322,0.00017998,2]
[406721959,1772119858871,-156.66979557,0.00017998,2]
[406721960,1772119858880,-150.0,0.00017998,2]
[406721961,1772119858890,-150.0,0.00017998,2]
[406721962,1772119858901,-187.29970089,0.00017998,2]
[406721963,1772119858911,-339.21457322,0.00017998,2]
[406721964,1772119858920,-156.66979557,0.00017998,2]
[406721965,1772119858930,-150.0,0.00017998,2]
[406721966,1772119858940,-150.0,0.00017998,2]
[406721967,1772119858950,-150.0,0.00017998,2]
[406721968,1772119858961,-150.0,0.00017998,2]
[406721969,1772119858971,-187.29970089,0.00017999,2]
[406721970,1772119858981,-339.21457322,0.00017999,2]
[406721971,1772119858990,-156.66979557,0.00017999,2]
[406721972,1772119859000,-150.0,0.00017999,2]
[406721973,1772119859009,-150.0,0.00017999,2]
[406721974,1772119859020,-150.0,0.00017999,2]
[406721975,1772119859030,-150.0,0.00017999,2]
[406721976,1772119859040,-150.0,0.00017999,2]
[406721977,1772119859050,-150.0,0.00017999,2]
[406721978,1772119859059,-187.29970089,0.00017999,2]
[406721979,1772119859069,-339.21457322,0.00017999,2]
[406721980,1772119859078,-156.66979557,0.00017999,2]
[406721981,1772119859088,-500.0,0.00017999,2]
[406721982,1772119859097,-500.0,0.00017999,2]
[406721983,1772119859107,-500.0,0.00017999,2]
[406721984,1772119859116,-500.0,0.00017999,2]
[406721985,1772119859128,-500.0,0.00017999,2]
[406721986,1772119859137,-500.0,0.00017999,2]
[406721987,1772119859147,-391.644255,0.00017999,2]
[406721988,1772119859156,-500.0,0.00017999,15]
[406721989,1772119859166,-500.0,0.00017999,16]
[406721990,1772119859175,-500.0,0.00017999,17]
[406721991,1772119859184,-500.0,0.00017999,18]
[406721992,1772119859194,-500.0,0.00017999,19]
[406721993,1772119859203,-500.0,0.00017999,20]
[406721994,1772119859213,-500.0,0.00017999,21]
[406721995,1772119859223,-500.0,0.00017999,21]
[406721996,1772119859232,-500.0,0.00017999,21]
[406721997,1772119859242,-384.61162915,0.00017999,21]
[406721998,1772119859251,-5800.0,0.00017999,2]
[406721999,1772119859262,-150.0,0.00017999,2]
[406722000,1772119859271,-155.07011647,0.00017999,2]
[406722001,1772119859280,-150.0,0.00017999,2]
[406722002,1772119859290,-150.0,0.00017999,2]
[406722003,1772119859299,-187.29970089,0.00017999,2]
[406722004,1772119859308,-339.21457322,0.00017999,2]
[406722005,1772119859317,-156.66979557,0.00017999,2]
[406722006,1772119859327,-150.0,0.00017999,2]
[406722007,1772119859336,-150.0,0.00017999,2]
[406722008,1772119859347,-150.0,0.00017999,2]
[406722009,1772119859356,-150.0,0.00017999,2]
[406722010,1772119859366,-150.0,0.00017999,2]
[406722011,1772119859378,-187.29970089,0.00017999,2]
[406722012,1772119859387,-339.21457322,0.00017999,2]
[406722013,1772119859396,-156.66979557,0.00017999,2]
[406722014,1772119859406,-150.0,0.00018,2]
[406722015,1772119859415,-150.0,0.00018,2]
[406722016,1772119859425,-150.0,0.00018,2]
[406722017,1772119859434,-187.29970089,0.00018,2]
[406722018,1772119859444,-339.21457322,0.00018,2]
[406722019,1772119859453,-156.66979557,0.00018,2]
[406722020,1772119859462,-624480.93602026,0.00018,2]
[406722021,1772119859471,-2775318.34444346,0.00018,2]
[406722022,1772119859736,-562.2151546,0.00018,2]
[406722023,1772119860682,-4900.0,0.00018,2]
[406722024,1772119860712,-295.21375076,0.00018,2]
[406722025,1772119860724,-592.30225,0.00018,2]
[406722026,1772119860964,-1257524.28555948,0.00018,2]
[406722027,1772119860981,-720651.64822024,0.00018,2]
[406722035,1772119963479,-150.0,0.0001,10]
[406722036,1772120090209,-15.13521679,0.0001,10]
[406722370,1772121032372,-525.79675041,6.787e-05,2]
[406722371,1772121032445,-319.25324959,6.787e-05,2]
[406722372,1772121032455,-250.0,6.789e-05,2]
[406722373,1772121032464,-36.07715041,6.79e-05,2]
[406722383,1772121039374,-263.92284959,6.79e-05,2]
[406722384,1772121039384,-1100.0,6.8e-05,2]
[406722385,1772121039393,-151.0,6.823e-05,2]
[406722386,1772121039403,-258.63882553,6.825e-05,2]
[406722387,1772121039412,-167.70064701,6.825e-05,2]
[406722388,1772121039422,-500.0,6.825e-05,2]
[406722389,1772121039432,-500.0,6.825e-05,2]
[406722390,1772121039441,-295.60717059,6.825e-05,2]
[406722391,1772121039451,-500.0,6.825e-05,2]
[406722392,1772121039460,-500.0,6.825e-05,2]
[406722393,1772121039469,-500.0,6.825e-05,2]
[406722394,1772121039479,-500.0,6.825e-05,2]
[406722395,1772121039488,-500.0,6.825e-05,2]
[406722396,1772121039496,-500.0,6.825e-05,2]
[406722397,1772121039504,-500.0,6.825e-05,2]
[406722398,1772121039513,-500.0,6.825e-05,2]
[406722399,1772121039521,-500.0,6.825e-05,2]
[406722400,1772121039531,-500.0,6.825e-05,2]
[406722401,1772121039541,-500.0,6.825e-05,2]
[406722402,1772121039550,-500.0,6.825e-05,2]
[406722403,1772121039559,-500.0,6.825e-05,2]
[406722404,1772121039568,-500.0,6.825e-05,2]
[406722405,1772121039577,-500.0,6.825e-05,2]
[406722406,1772121039587,-500.0,6.825e-05,2]
[406722407,1772121039597,-500.0,6.825e-05,2]
[406722408,1772121039606,-500.0,6.825e-05,2]
[406722409,1772121039616,-500.0,6.825e-05,2]
[406722410,1772121039629,-500.0,6.825e-05,2]
[406722411,1772121039639,-500.0,6.825e-05,2]
[406722412,1772121039649,-500.0,6.825e-05,2]
[406722413,1772121039659,-500.0,6.825e-05,2]
[406722414,1772121039669,-500.0,6.825e-05,2]
[406722415,1772121039679,-617.97403857,6.825e-05,2]
[406722416,1772121039689,-219951.62681824,6.826e-05,2]
[406722417,1772121039701,-150464.32656602,6.826e-05,2]
[406722418,1772121039714,-400.0,6.826e-05,2]
[406722419,1772121039726,-534.8,6.826e-05,2]
[406722424,1772121041125,-2356.90000026,6.826e-05,2]
[406722425,1772121041137,-1626292.34661548,6.826e-05,2]
[406722426,1772121041147,-300.0,6.854e-05,2]
[406722427,1772121041157,-300.0,6.854e-05,2]
[406722428,1772121041167,-300.0,6.854e-05,2]
[406722429,1772121041177,-2300.0,6.9e-05,2]
[406722430,1772121041187,-281.5,7e-05,2]
[406722431,1772121041198,-3400.0,7e-05,2]
[406722432,1772121041208,-300.0,7.466e-05,2]
[406722433,1772121041217,-250.0,7.466e-05,2]
[406722434,1772121041227,-315.20669997,7.466e-05,2]
[406722435,1772121041237,-500.0,8.219e-05,2]
[406722436,1772121041246,-500.0,8.219e-05,2]
[406722437,1772121041256,-500.0,8.219e-05,2]
[406722438,1772121041266,-500.0,8.219e-05,2]
[406722439,1772121041275,-500.0,8.219e-05,2]
[406722440,1772121041288,-500.0,8.219e-05,2]
[406722441,1772121041297,-500.0,8.219e-05,2]
[406722442,1772121041307,-214.70834073,8.219e-05,2]
[406722443,1772121041320,-277.271877,8.219e-05,2]
[406722444,1772121041330,-500.0,8.219e-05,2]
[406722445,1772121041340,-385259.66,8.332e-05,2]
[406722446,1772121041350,-166.66,8.442e-05,2]
[406722447,1772121041360,-37901.47,8.508e-05,2]
[406722448,1772121041370,-370.0,8.675e-05,2]
[406722449,1772121041380,-6229.24,8.689e-05,2]
[406722450,1772121041389,-1539.0,8.693e-05,2]
[406722451,1772121041400,-826.0,8.71e-05,2]
[406722452,1772121041409,-166.66,8.721e-05,2]
[406722453,1772121041419,-1212.0,8.727e-05,2]
[406722454,1772121041428,-753.89,8.733e-05,2]
[406722455,1772121041437,-965.74,8.745e-05,2]
[406722457,1772121041447,-166.66,8.999e-05,2]
[406722459,1772121041456,-166.66,9.278e-05,2]
[406722461,1772121041467,-166.66,9.557e-05,2]
[406722463,1772121041476,-1337.0,9.606e-05,2]
[406722465,1772121041486,-1174.0,9.625e-05,2]
[406722467,1772121041496,-439.0,9.645e-05,2]
[406722469,1772121041505,-1405.0,9.664e-05,2]
[406722471,1772121041515,-1668.0,9.683e-05,2]
[406722473,1772121041525,-1024.0,9.702e-05,2]
[406722475,1772121041539,-860.0,9.721e-05,2]
[406722476,1772121041548,-150.0,9.726e-05,2]
[406722477,1772121041558,-150.0,9.726e-05,2]
[406722478,1772121041567,-1173.0,9.74e-05,2]
[406722479,1772121041576,-1890.0,9.76e-05,2]
[406722480,1772121041586,-150.0,9.781e-05,2]
[406722481,1772121041595,-69461.8304039,9.781e-05,7]
[406722482,1772121041605,-166.66,9.835e-05,2]
[406722483,1772121041615,-500.0,0.0001,2]
[406722484,1772121041624,-500.0,0.0001,2]
[406722485,1772121041634,-204.31050694,0.0001,2]
[406722486,1772121041643,-500.0,0.0001,2]
[406722487,1772121041653,-500.0,0.0001,2]
[406722488,1772121041664,-151.0,0.0001,2]
[406722489,1772121041674,-500.0,0.0001,2]
[406722490,1772121041683,-151.0,0.0001,2]
[406722491,1772121041693,-500.0,0.0001,2]
[406722492,1772121041706,-151.0,0.0001,2]
[406722493,1772121041716,-500.0,0.0001,2]
[406722494,1772121041726,-151.0,0.0001,2]
[406722495,1772121041736,-500.0,0.0001,2]
[406722496,1772121041746,-151.0,0.0001,2]
[406722497,1772121041756,-500.0,0.0001,2]
[406722498,1772121041766,-151.0,0.0001,2]
[406722499,1772121041776,-500.0,0.0001,2]
[406722500,1772121041790,-151.0,0.0001,2]
[406722501,1772121041800,-500.0,0.0001,2]
[406722502,1772121041811,-1186.11241235,0.0001,2]
[406722503,1772121041821,-500.0,0.0001,2]
[406722504,1772121041832,-500.0,0.0001,2]
[406722505,1772121041844,-500.0,0.0001,2]
[406722506,1772121041853,-500.0,0.0001,2]
[406722507,1772121041867,-500.0,0.0001,2]
[406722508,1772121041877,-553.9571256,0.0001,2]
[406722509,1772121041888,-151.0,0.0001,2]
[406722510,1772121041899,-151.0,0.0001,2]
[406722511,1772121041909,-151.0,0.0001,2]
[406722512,1772121041919,-151.0,0.0001,2]
[406722513,1772121042102,-151.0,0.0001,2]
[406722514,1772121042113,-151.0,0.0001,2]
[406722515,1772121042124,-151.0,0.0001,2]
[406722516,1772121042135,-151.0,0.0001,2]
[406722517,1772121042145,-151.0,0.0001,2]
[406722518,1772121042155,-151.0,0.0001,2]
[406722519,1772121042165,-151.0,0.0001,2]
[406722520,1772121042175,-151.0,0.0001,2]
[406722521,1772121042185,-151.0,0.0001,2]
[406722522,1772121042195,-151.0,0.0001,2]
[406722523,1772121042205,-151.0,0.0001,2]
[406722524,1772121042215,-151.0,0.0001,2]
[406722525,1772121042225,-151.0,0.0001,2]
[406722526,1772121042234,-151.0,0.0001,2]
[406722527,1772121042247,-151.0,0.0001,2]
[406722528,1772121042257,-151.0,0.0001,2]
[406722529,1772121042266,-151.0,0.0001,2]
[406722530,1772121042276,-151.0,0.0001,2]
[406722531,1772121042289,-151.0,0.0001,2]
[406722532,1772121042299,-151.0,0.0001,2]
[406722533,1772121042309,-151.0,0.0001,2]
[406722534,1772121042318,-151.0,0.0001,2]
[406722535,1772121042328,-151.0,0.0001,2]
[406722536,1772121042338,-151.0,0.0001,2]
[406722537,1772121042348,-151.0,0.0001,2]
[406722538,1772121042357,-151.0,0.0001,2]
[406722539,1772121042366,-151.0,0.0001,2]
[406722540,1772121042376,-200.0,0.0001,2]
[406722541,1772121042386,-1070.62307231,0.0001,2]
[406722542,1772121042395,-500.0,0.000103,2]
[406722543,1772121042404,-500.0,0.000103,2]
[406722544,1772121042414,-500.0,0.000103,2]
[406722545,1772121042423,-500.0,0.000103,2]
[406722546,1772121042433,-500.0,0.000103,2]
[406722547,1772121042442,-500.0,0.000103,2]
[406722548,1772121042455,-500.0,0.000103,2]
[406722549,1772121042464,-500.0,0.000103,2]
[406722550,1772121042473,-500.0,0.000103,2]
[406722551,1772121042483,-500.0,0.000103,2]
[406722552,1772121042492,-500.0,0.000103,2]
[406722553,1772121042502,-500.0,0.000103,2]
[406722554,1772121042511,-500.0,0.000103,2]
[406722555,1772121042522,-500.0,0.000103,2]
[406722556,1772121042535,-500.0,0.000103,2]
[406722557,1772121042546,-500.0,0.000103,2]
[406722558,1772121042556,-500.0,0.000103,2]
[406722559,1772121042566,-500.0,0.000103,2]
[406722560,1772121042576,-500.0,0.000103,2]
[406722561,1772121042586,-500.0,0.000103,2]
[406722562,1772121042596,-500.0,0.000103,2]
[406722563,1772121042605,-700.0,0.000103,2]
[406722564,1772121042615,-500.0,0.000103,2]
[406722565,1772121042624,-500.0,0.000103,2]
[406722566,1772121042634,-500.0,0.000103,2]
[406722567,1772121042643,-615.83999229,0.000103,2]
[406722568,1772121042653,-500.0,0.000103,2]
[406722569,1772121042663,-500.0,0.000103,2]
[406722570,1772121042673,-500.0,0.000103,2]
[406722571,1772121042683,-500.0,0.000103,2]
[406722572,1772121042693,-500.0,0.000103,2]
[406722573,1772121042702,-500.0,0.000103,2]
[406722574,1772121042712,-500.0,0.000103,2]
[406722575,1772121042722,-500.0,0.000103,2]
[406722576,1772121042732,-500.0,0.000103,2]
[406722577,1772121042741,-500.0,0.000103,2]
[406722578,1772121042751,-500.0,0.000103,2]
[406722579,1772121042761,-500.0,0.000103,2]
[406722580,1772121042771,-500.0,0.000103,2]
[406722581,1772121042780,-500.0,0.000103,2]
[406722582,1772121042793,-500.0,0.000103,2]
[406722583,1772121042802,-500.0,0.000103,2]
[406722584,1772121042812,-500.0,0.000103,2]
[406722585,1772121042823,-500.0,0.000103,2]
[406722586,1772121042833,-500.0,0.000103,2]
[406722587,1772121042845,-500.0,0.000103,2]
[406722588,1772121042857,-700.0,0.000103,2]
[406722589,1772121042870,-500.0,0.000103,2]
[406722590,1772121042881,-500.0,0.000103,2]
[406722591,1772121042891,-500.0,0.000103,2]
[406722592,1772121042902,-500.0,0.000103,2]
[406722593,1772121042912,-500.0,0.000103,2]
[406722594,1772121042922,-500.0,0.000103,2]
[406722595,1772121042931,-500.0,0.000103,2]
[406722596,1772121042942,-500.0,0.000103,2]
[406722597,1772121042954,-500.0,0.000103,2]
[406722598,1772121042964,-500.0,0.000103,2]
[406722599,1772121042973,-9999.99,0.00010475,2]
[406722600,1772121042982,-150.99,0.00010475,2]
[406722601,1772121042992,-299.99,0.00010475,2]
[406722602,1772121043002,-381.71,0.00010475,2]
[406722603,1772121043012,-9999.99,0.00010475,2]
[406722604,1772121043022,-501.35484447,0.00010829,2]
[406722605,1772121043033,-502.2030619,0.00010829,2]
[406722606,1772121043045,-500.0,0.00010829,2]
[406722607,1772121043055,-450.38873582,0.00010829,2]
[406722608,1772121043064,-500.0,0.00010829,2]
[406722609,1772121043074,-500.0,0.00010829,2]
[406722610,1772121043084,-150.0,0.00010959,2]
[406722611,1772121043094,-4791.25010136,0.00011099,2]
[406722612,1772121043104,-4791.25010129,0.00011099,2]
[406722613,1772121043114,-4791.25010129,0.00011099,2]
[406722614,1772121043125,-4791.25010129,0.00011099,2]
[406722615,1772121043134,-16240.68395685,0.00011099,2]
[406722616,1772121043144,-16240.68395677,0.00011099,2]
[406722617,1772121043154,-16240.68395677,0.00011099,2]
[406722618,1772121043164,-16240.68395677,0.00011099,2]
[406722620,1772121043174,-188.75,0.00011121,2]
[406722621,1772121043184,-5771.18,0.00011233,2]
[406722622,1772121043194,-1000.0,0.00011377,2]
[406722623,1772121043204,-513.39301398,0.00011377,2]
[406722624,1772121043213,-1041.0,0.00011475,2]
[406722625,1772121043223,-618.0,0.00011475,2]
[406722626,1772121043242,-3498.0,0.00011475,2]
[406722627,1772121043252,-1340.0,0.00011475,2]
[406722628,1772121043262,-1277.0,0.00011475,2]
[406722629,1772121043271,-413.0,0.00011475,2]
[406722630,1772121043280,-2456.0,0.00011475,2]
[406722631,1772121043294,-616.02225,0.00011712,2]
[406722632,1772121043304,-2919.924799,0.00011712,2]
[406722633,1772121043313,-16240.68395677,0.00011789,2]
[406722634,1772121043323,-4791.25010129,0.00011789,2]
[406722635,1772121043332,-173.95657067,0.00011891,2]
[406722636,1772121043341,-160.0,0.00011891,2]
[406722637,1772121043351,-1500.0,0.00011924,2]
[406722641,1772121043360,-204.31050693,0.000124,2]
[406722643,1772121043370,-2000.0,0.00012472,2]
[406722645,1772121043380,-4600.0,0.000128,4]
[406722647,1772121043389,-500.0,0.0001289,2]
[406722649,1772121043398,-504.90043007,0.0001289,2]
[406722651,1772121043408,-626.24566997,0.0001289,2]
[406722653,1772121043418,-500.0,0.0001289,2]
[406722654,1772121043428,-500.0,0.0001289,2]
[406722655,1772121043437,-500.0,0.0001289,2]
[406722656,1772121043448,-500.0,0.0001289,2]
[406722657,1772121043457,-500.0,0.0001289,2]
[406722658,1772121043467,-500.0,0.0001289,2]
[406722659,1772121043477,-500.0,0.0001289,2]
[406722660,1772121043486,-500.0,0.0001289,2]
[406722661,1772121043496,-500.0,0.0001289,2]
[406722662,1772121043506,-500.0,0.0001289,2]
[406722663,1772121043516,-500.0,0.0001289,2]
[406722664,1772121043526,-226.12454466,0.0001289,2]
[406722665,1772121043538,-500.0,0.0001289,2]
[406722666,1772121043548,-500.0,0.0001289,2]
[406722667,1772121043557,-500.0,0.0001289,2]
[406722668,1772121043566,-173.7910009,0.0001289,2]
[406722669,1772121043576,-500.0,0.0001289,2]
[406722670,1772121043585,-500.76827377,0.0001289,2]
[406722671,1772121043595,-500.0,0.0001289,2]
[406722672,1772121043604,-500.0,0.0001289,2]
[406722673,1772121043613,-500.0,0.0001289,2]
[406722674,1772121043623,-500.0,0.0001289,2]
[406722675,1772121043632,-500.0,0.0001289,2]
[406722676,1772121043641,-500.0,0.0001289,2]
[406722677,1772121043661,-500.0,0.0001289,2]
[406722678,1772121043671,-500.0,0.0001289,2]
[406722679,1772121043682,-500.0,0.0001289,2]
[406722680,1772121043692,-500.0,0.0001289,2]
[406722681,1772121043702,-500.0,0.0001289,2]
[406722682,1772121043713,-500.0,0.0001289,2]
[406722683,1772121043723,-150.25022043,0.0001289,2]
[406722684,1772121043733,-500.0,0.0001289,2]
[406722685,1772121043743,-500.0,0.0001289,2]
[406722686,1772121043754,-500.0,0.0001289,2]
[406722687,1772121043764,-500.0,0.0001289,2]
[406722688,1772121043774,-500.0,0.0001289,2]
[406722689,1772121043786,-500.0,0.0001289,2]
[406722690,1772121043796,-500.0,0.0001289,2]
[406722691,1772121043806,-500.0,0.0001289,2]
[406722692,1772121043815,-500.0,0.0001289,2]
[406722693,1772121043825,-500.0,0.0001289,2]
[406722694,1772121043835,-500.0,0.0001289,2]
[406722695,1772121043845,-500.0,0.0001289,2]
[406722696,1772121043855,-502.38608045,0.0001289,2]
[406722697,1772121043867,-500.0,0.0001289,2]
[406722698,1772121043879,-500.0,0.0001289,2]
[406722699,1772121043889,-500.0,0.0001289,2]
[406722700,1772121043900,-500.0,0.0001289,2]
[406722701,1772121043909,-500.0,0.0001289,2]
[406722702,1772121043920,-500.0,0.0001289,2]
[406722703,1772121043930,-500.0,0.0001289,2]
[406722704,1772121043940,-500.0,0.0001289,2]
[406722705,1772121043950,-500.0,0.0001289,2]
[406722706,1772121043961,-500.0,0.0001289,2]
[406722707,1772121043972,-500.0,0.0001289,2]
[406722708,1772121043982,-500.0,0.0001289,2]
[406722709,1772121043992,-500.0,0.0001289,2]
[406722710,1772121044002,-500.0,0.0001289,2]
[406722711,1772121044012,-500.0,0.0001289,2]
[406722712,1772121044022,-500.0,0.0001289,2]
[406722713,1772121044036,-500.0,0.0001289,2]
[406722714,1772121044047,-500.0,0.0001289,2]
[406722715,1772121044056,-500.0,0.0001289,2]
[406722716,1772121044066,-500.0,0.0001289,2]
[406722717,1772121044077,-500.0,0.0001289,2]
[406722718,1772121044087,-670.0,0.0001289,2]
[406722719,1772121044097,-500.0,0.0001289,2]
[406722720,1772121044108,-500.0,0.0001289,2]
[406722721,1772121044118,-500.0,0.0001289,2]
[406722722,1772121044128,-500.0,0.0001289,2]
[406722723,1772121044138,-500.0,0.0001289,2]
[406722724,1772121044148,-152.0758102,0.0001289,2]
[406722725,1772121044158,-500.0,0.0001289,2]
[406722726,1772121044168,-500.0,0.0001289,2]
[406722727,1772121044177,-500.0,0.0001289,2]
[406722728,1772121044187,-500.0,0.0001289,2]
[406722729,1772121044196,-5700.0,0.000129,4]
[406722730,1772121044209,-16240.68395677,0.00013011,2]
[406722731,1772121044219,-4791.25010129,0.00013011,2]
[406722732,1772121044229,-2500.0,0.0001302,2]
[406722733,1772121044239,-1502.82666669,0.00013088,2]
[406722734,1772121044389,-208.88429413,0.0001326,2]
[406722735,1772121044400,-1070.62307231,0.00013278,2]
[406722736,1772121044411,-151.0,0.00013285,2]
[406722737,1772121044421,-151.0,0.00013285,2]
[406722738,1772121044431,-465.42516497,0.00013468,2]
[406722739,1772121044440,-21846.65485425,0.00013468,2]
[406722740,1772121044449,-3000.0,0.00013568,2]
[406722741,1772121044459,-500.0,0.00013698,2]
[406722742,1772121044468,-500.0,0.00013698,2]
[406722743,1772121044478,-500.0,0.00013698,2]
[406722744,1772121044488,-500.0,0.00013698,2]
[406722745,1772121044497,-500.0,0.00013698,2]
[406722746,1772121044507,-500.0,0.00013698,2]
[406722747,1772121044516,-500.0,0.00013698,2]
[406722748,1772121044526,-500.0,0.00013698,2]
[406722749,1772121044540,-500.0,0.00013698,2]
[406722750,1772121044550,-500.0,0.00013698,2]
[406722751,1772121044563,-500.0,0.00013698,2]
[406722752,1772121044573,-500.0,0.00013698,2]
[406722753,1772121044582,-500.0,0.00013698,2]
[406722754,1772121044592,-500.0,0.00013698,2]
[406722755,1772121044602,-500.0,0.00013698,2]
[406722756,1772121044612,-500.0,0.00013698,2]
[406722757,1772121044622,-500.0,0.00013698,2]
[406722758,1772121044632,-500.0,0.00013698,2]
[406722759,1772121044642,-405.62075362,0.00013698,2]
[406722760,1772121044652,-500.0,0.00013698,2]
[406722761,1772121044661,-500.0,0.00013698,2]
[406722762,1772121044671,-500.0,0.00013698,2]
[406722763,1772121044681,-500.0,0.00013698,2]
[406722764,1772121044690,-500.0,0.00013698,2]
[406722765,1772121044700,-500.0,0.00013698,2]
[406722766,1772121044709,-500.0,0.00013698,2]
[406722767,1772121044719,-500.0,0.00013698,2]
[406722768,1772121044728,-500.0,0.00013698,2]
[406722769,1772121044738,-500.0,0.00013698,2]
[406722770,1772121044747,-500.0,0.00013698,2]
[406722771,1772121044757,-500.0,0.00013698,2]
[406722772,1772121044767,-500.0,0.00013698,2]
[406722773,1772121044776,-500.0,0.00013698,2]
[406722774,1772121044788,-500.0,0.00013698,2]
[406722775,1772121044798,-500.0,0.00013698,2]
[406722776,1772121044808,-500.0,0.00013698,2]
[406722777,1772121044818,-500.0,0.00013698,2]
[406722778,1772121044828,-500.0,0.00013698,2]
[406722779,1772121044838,-269.57915282,0.00013698,2]
[406722780,1772121044849,-500.0,0.00013698,2]
[406722781,1772121044860,-500.0,0.00013698,2]
[406722782,1772121044871,-500.0,0.00013698,2]
[406722783,1772121044881,-500.0,0.00013698,2]
[406722784,1772121044891,-409.20397161,0.00013698,2]
[406722785,1772121044901,-151.77928561,0.00013698,2]
[406722786,1772121044911,-500.0,0.00013698,2]
[406722787,1772121044921,-500.0,0.00013698,2]